fUST/lending_fUST_20241015
["ID","MTS","AMOUNT","RATE_DAILY","PERIOD"]
[340265037,1728948649387,-500.0,0.00045563,60]
[340265038,1728948649397,-500.0,0.00045563,60]
[340265039,1728948649407,-500.0,0.00045563,60]
[340265040,1728948649417,-500.0,0.00045563,60]
[340265041,1728948649428,-500.0,0.00045563,60]
[340265042,1728948649438,-500.0,0.00045563,60]
[340265043,1728948649448,-500.0,0.00045563,60]
[340265044,1728948649460,-511.56245372,0.00045563,60]
[340265045,1728948649470,-500.0,0.00045563,60]
[340265046,1728948649480,-517.75859623,0.00045563,60]
[340265047,1728948649490,-500.0,0.00045563,60]
[340265048,1728948649502,-500.0,0.00045563,60]
[340265049,1728948649512,-500.0,0.00045563,60]
[340265050,1728948649523,-500.0,0.00045563,60]
[340265051,1728948649535,-500.0,0.00045563,60]
[340265052,1728948649545,-500.0,0.00045563,60]
[340265053,1728948649554,-500.0,0.00045563,60]
[340265054,1728948649564,-500.0,0.00045563,60]
[340265055,1728948649574,-500.0,0.00045563,60]
[340265056,1728948649584,-157.06720436,0.00045563,60]
[340265057,1728948649594,-500.0,0.00045563,60]
[340265058,1728948649604,-500.0,0.00045563,60]
[340265059,1728948649614,-179.47354761,0.00045563,60]
[340265060,1728948649624,-500.0,0.00045563,60]
[340265061,1728948649635,-500.0,0.00045563,60]
[340265062,1728948649648,-487.2363206,0.00045563,60]
[340265063,1728948649659,-500.0,0.00045563,60]
[340265064,1728948649668,-545.53136554,0.00045563,60]
[340265065,1728948649679,-500.0,0.00045563,60]
[340265066,1728948649693,-443.40112457,0.00045563,60]
[340265067,1728948649703,-534.23730645,0.00045563,60]
[340265068,1728948649713,-500.0,0.00045563,60]
[340265069,1728948649723,-500.0,0.00045563,60]
[340265070,1728948649733,-638.3,0.00045563,60]
[340265071,1728948649743,-1036.76,0.00045563,60]
[340265072,1728948649752,-500.0,0.00045563,60]
[340265073,1728948649762,-500.0,0.00045563,60]
[340265074,1728948649772,-359.77,0.00045563,60]
[340265075,1728948649783,-500.0,0.00045563,60]
[340265076,1728948649793,-500.0,0.00045563,60]
[340265077,1728948649803,-500.0,0.00045563,60]
[340265078,1728948649812,-500.0,0.00045563,60]
[340265079,1728948649823,-500.0,0.00045563,60]
[340265080,1728948649834,-500.0,0.00045563,60]
[340265081,1728948649844,-500.0,0.00045563,60]
[340265082,1728948649854,-500.0,0.00045563,60]
[340265083,1728948649864,-524.69142745,0.00045563,60]
[340265084,1728948649956,-500.0,0.00045563,60]
[340265085,1728948649966,-500.0,0.00045563,60]
[340265086,1728948649976,-194.64988015,0.00045563,60]
[340265087,1728948649985,-500.0,0.00045563,60]
[340265088,1728948649995,-305.25845853,0.00045563,60]
[340265089,1728948650004,-500.0,0.00045563,60]
[340265090,1728948650013,-500.0,0.00045563,60]
[340265091,1728948650023,-500.0,0.00045563,60]
[340265092,1728948650033,-500.0,0.00045563,60]
[340265093,1728948650043,-200.9549696,0.00045563,60]
[340265094,1728948650052,-500.0,0.00045563,60]
[340265095,1728948650063,-524.27057895,0.00045563,60]
[340265096,1728948650073,-500.0,0.00045563,60]
[340265097,1728948650084,-500.0,0.00045563,60]
[340265098,1728948650094,-500.0,0.00045563,60]
[340265099,1728948650106,-500.0,0.00045563,60]
[340265100,1728948650116,-500.0,0.00045563,60]
[340265101,1728948650127,-500.0,0.00045563,60]
[340265102,1728948650137,-500.0,0.00045563,60]
[340265103,1728948650147,-500.0,0.00045563,60]
[340265104,1728948650158,-500.0,0.00045563,60]
[340265105,1728948650166,-643.7621822,0.00045563,60]
[340265106,1728948650176,-530.58,0.00045563,60]
[340265107,1728948650185,-500.0,0.00045563,60]
[340265108,1728948650195,-500.0,0.00045563,60]
[340265109,1728948650207,-500.0,0.00045563,60]
[340265110,1728948650216,-500.0,0.00045563,60]
[340265111,1728948650226,-500.0,0.00045563,60]
[340265112,1728948650236,-500.0,0.00045563,60]
[340265113,1728948650245,-683.6,0.00045563,60]
[340265114,1728948650254,-500.0,0.00045563,60]
[340265115,1728948650265,-538.16118297,0.00045563,60]
[340265116,1728948650275,-500.0,0.00045563,60]
[340265117,1728948650285,-500.0,0.00045563,60]
[340265118,1728948650296,-500.0,0.00045563,60]
[340265119,1728948650306,-151.0,0.00045563,120]
[340265120,1728948650318,-500.0,0.00045563,60]
[340265121,1728948650327,-151.0,0.00045563,120]
[340265122,1728948650338,-845.02,0.00045563,60]
[340265123,1728948650348,-500.0,0.00045563,60]
[340265124,1728948650360,-500.0,0.00045563,60]
[340265125,1728948650370,-500.0,0.00045563,60]
[340265126,1728948650381,-1286.364124,0.00045563,120]
[340265127,1728948650392,-1286.364124,0.00045563,120]
[340265128,1728948650403,-151.0,0.00045563,2]
[340265129,1728948650414,-500.0,0.00045563,60]
[340265130,1728948650424,-500.0,0.00045563,60]
[340265131,1728948650437,-500.0,0.00045563,60]
[340265132,1728948650448,-310.53503522,0.00045563,60]
[340265133,1728948650458,-500.0,0.00045563,60]
[340265134,1728948650469,-500.0,0.00045563,60]
[340265135,1728948650480,-226.193086,0.00045563,120]
[340265136,1728948650491,-500.0,0.00045563,60]
[340265137,1728948650502,-226.193086,0.00045563,120]
[340265138,1728948650513,-525.89,0.00045563,60]
[340265139,1728948650524,-151.0,0.00045563,120]
[340265140,1728948650534,-151.0,0.00045563,120]
[340265141,1728948650545,-151.0,0.00045563,120]
[340265142,1728948650556,-151.0,0.00045563,120]
[340265143,1728948650568,-500.0,0.00045563,60]
[340265144,1728948650578,-151.0,0.00045563,120]
[340265145,1728948650589,-506.7,0.00045563,60]
[340265146,1728948650599,-500.0,0.00045563,60]
[340265147,1728948650608,-151.0,0.00045563,120]
[340265148,1728948650617,-500.0,0.00045563,60]
[340265149,1728948650627,-500.0,0.00045563,60]
[340265150,1728948650641,-500.0,0.00045563,60]
[340265151,1728948650650,-500.0,0.00045563,60]
[340265152,1728948650659,-500.0,0.00045563,60]
[340265153,1728948650669,-500.0,0.00045563,60]
[340265154,1728948650681,-500.0,0.00045563,60]
[340265155,1728948650694,-500.0,0.00045563,60]
[340265156,1728948650704,-500.0,0.00045563,60]
[340265157,1728948650716,-500.0,0.00045563,60]
[340265158,1728948650727,-500.0,0.00045563,60]
[340265159,1728948650740,-325.24776,0.00045563,120]
[340265160,1728948650750,-325.24776,0.00045563,120]
[340265161,1728948650762,-500.0,0.00045563,60]
[340265162,1728948650772,-316.64382,0.00045563,120]
[340265163,1728948650783,-316.64382,0.00045563,120]
[340265164,1728948650793,-154.3843523,0.00045563,60]
[340265165,1728948650802,-550.79971587,0.00045742,10]
[340265166,1728948650812,-154.34185749,0.00045777,58]
[340265167,1728948650821,-183.65319522,0.00045979,10]
[340265168,1728948650830,-500.0,0.00046,15]
[340265169,1728948650840,-500.0,0.00046,2]
[340265170,1728948650848,-500.0,0.00046,2]
[340265171,1728948650857,-813.0,0.00046115,5]
[340265172,1728948650867,-883.48,0.00046155,10]
[340265173,1728948650876,-736.23,0.00046155,10]
[340265174,1728948650887,-613.53,0.00046155,10]
[340265175,1728948650896,-334.02355791,0.00046156,6]
[340265176,1728948650906,-500.0,0.00046164,60]
[340265177,1728948650916,-500.0,0.00046164,60]
[340265178,1728948650926,-500.0,0.00046164,60]
[340265179,1728948650937,-500.0,0.00046164,60]
[340265180,1728948650947,-500.0,0.00046164,60]
[340265181,1728948650956,-500.0,0.00046164,60]
[340265182,1728948650967,-500.0,0.00046164,60]
[340265183,1728948650976,-500.0,0.00046165,60]
[340265184,1728948650987,-272.69350439,0.00046165,60]
[340265185,1728948650996,-500.0,0.00046165,60]
[340265186,1728948651007,-636.61853927,0.00046165,60]
[340265187,1728948651020,-500.0,0.00046165,60]
[340265188,1728948651030,-1036.76,0.00046165,60]
[340265189,1728948651040,-400.73868423,0.00046165,60]
[340265190,1728948651052,-500.0,0.00046165,60]
[340265191,1728948651063,-302.03276981,0.00046165,60]
[340265192,1728948651074,-500.0,0.00046165,60]
[340265193,1728948651084,-500.0,0.00046165,60]
[340265194,1728948651094,-500.0,0.00046165,60]
[340265195,1728948651104,-539.43922821,0.00046165,60]
[340265196,1728948651117,-500.0,0.00046165,60]
[340265197,1728948651127,-500.0,0.00046165,60]
[340265198,1728948651143,-500.0,0.00046165,60]
[340265199,1728948651154,-500.0,0.00046165,60]
[340265200,1728948651164,-500.0,0.00046165,60]
[340265201,1728948651174,-500.0,0.00046165,60]
[340265202,1728948651184,-500.0,0.00046165,60]
[340265203,1728948651194,-500.0,0.00046165,60]
[340265204,1728948651204,-500.0,0.00046165,60]
[340265205,1728948651215,-845.02,0.00046165,60]
[340265206,1728948651224,-500.0,0.00046165,60]
[340265207,1728948651233,-500.0,0.00046165,60]
[340265208,1728948651244,-500.0,0.00046165,60]
[340265209,1728948651253,-500.0,0.00046165,60]
[340265210,1728948651319,-500.0,0.00046165,60]
[340265211,1728948651328,-525.89,0.00046165,60]
[340265212,1728948651338,-506.7,0.00046165,60]
[340265213,1728948651347,-500.0,0.00046165,60]
[340265214,1728948651357,-500.0,0.00046165,60]
[340265215,1728948651366,-500.0,0.00046165,60]
[340265216,1728948651375,-500.0,0.00046165,60]
[340265217,1728948651391,-500.0,0.00046165,60]
[340265218,1728948651400,-500.0,0.00046165,60]
[340265219,1728948651409,-500.0,0.00046165,60]
[340265220,1728948651418,-500.0,0.00046166,60]
[340265221,1728948651428,-171.99592191,0.00046166,60]
[340265222,1728948651439,-500.0,0.00046166,60]
[340265223,1728948651448,-500.0,0.00046166,60]
[340265224,1728948651458,-500.0,0.00046166,60]
[340265225,1728948651468,-500.0,0.00046166,60]
[340265226,1728948651477,-500.0,0.00046166,60]
[340265227,1728948651487,-500.0,0.00046166,60]
[340265228,1728948651496,-500.0,0.00046166,60]
[340265229,1728948651506,-500.0,0.00046166,60]
[340265230,1728948651516,-500.0,0.00046166,60]
[340265231,1728948651526,-500.0,0.00046166,60]
[340265232,1728948651535,-500.0,0.00046166,60]
[340265233,1728948651545,-500.0,0.00046166,60]
[340265234,1728948651554,-314.87893146,0.00046166,60]
[340265235,1728948651564,-500.0,0.00046166,60]
[340265236,1728948651573,-500.0,0.00046166,60]
[340265237,1728948651583,-500.0,0.00046166,60]
[340265238,1728948651592,-539.10984096,0.00046166,60]
[340265239,1728948651601,-500.0,0.00046166,60]
[340265240,1728948651611,-500.0,0.00046166,60]
[340265241,1728948651620,-500.0,0.00046166,60]
[340265242,1728948651630,-500.0,0.00046166,60]
[340265243,1728948651639,-359.77,0.00046166,60]
[340265244,1728948651649,-500.0,0.00046166,60]
[340265245,1728948651658,-500.0,0.00046166,60]
[340265246,1728948651668,-505.79445778,0.00046166,60]
[340265247,1728948651677,-500.0,0.00046166,60]
[340265248,1728948651686,-500.0,0.00046166,60]
[340265249,1728948651699,-500.0,0.00046166,60]
[340265250,1728948651709,-500.0,0.00046166,60]
[340265251,1728948651718,-500.0,0.00046166,60]
[340265252,1728948651728,-500.0,0.00046166,60]
[340265253,1728948651737,-500.0,0.00046166,60]
[340265254,1728948651746,-500.0,0.00046166,60]
[340265255,1728948651755,-500.0,0.00046166,60]
[340265256,1728948651765,-526.22684292,0.00046166,60]
[340265257,1728948651774,-500.0,0.00046166,60]
[340265258,1728948651783,-500.0,0.00046166,60]
[340265259,1728948651792,-500.0,0.00046166,60]
[340265260,1728948651802,-500.0,0.00046166,60]
[340265261,1728948651812,-500.0,0.00046166,60]
[340265262,1728948651821,-683.6,0.00046166,60]
[340265263,1728948651830,-500.0,0.00046166,60]
[340265264,1728948651840,-500.0,0.00046166,60]
[340265265,1728948651849,-546.49009826,0.00046166,60]
[340265266,1728948651858,-500.0,0.00046166,60]
[340265267,1728948651867,-226.193086,0.00046166,120]
[340265268,1728948651876,-500.0,0.00046166,60]
[340265269,1728948651888,-226.193086,0.00046166,120]
[340265270,1728948651897,-151.0,0.00046166,120]
[340265271,1728948651907,-151.0,0.00046166,120]
[340265272,1728948651916,-151.0,0.00046166,120]
[340265273,1728948651925,-151.0,0.00046166,120]
[340265274,1728948651935,-500.0,0.00046166,60]
[340265275,1728948651945,-151.0,0.00046166,120]
[340265276,1728948651955,-151.0,0.00046166,120]
[340265277,1728948651966,-500.0,0.00046166,60]
[340265278,1728948651975,-500.0,0.00046166,60]
[340265279,1728948651984,-293.54586976,0.00046166,60]
[340265280,1728948651993,-500.0,0.00046166,60]
[340265281,1728948652001,-500.0,0.00046166,60]
[340265282,1728948652010,-325.24776,0.00046166,120]
[340265283,1728948652020,-325.24776,0.00046166,120]
[340265284,1728948652029,-500.0,0.00046166,60]
[340265285,1728948652038,-316.64382,0.00046166,120]
[340265286,1728948652047,-316.64382,0.00046166,120]
[340265287,1728948652056,-551.67995657,0.00046388,10]
[340265288,1728948652065,-556.79355992,0.00046388,7]
[340265289,1728948652075,-334.02355791,0.00046467,6]
[340265290,1728948652086,-334.02355791,0.00046467,6]
[340265291,1728948652097,-352.65879736,0.00046473,10]
[340265292,1728948652109,-501.24257192,0.00046473,10]
[340265293,1728948652119,-546.094164,0.00046477,120]
[340265294,1728948652130,-546.094164,0.00046477,120]
[340265295,1728948652140,-1096.659826,0.00046477,60]
[340265296,1728948652150,-151.0,0.00046477,120]
[340265297,1728948652160,-151.0,0.00046477,120]
[340265298,1728948652170,-151.0,0.00046477,120]
[340265299,1728948652181,-151.0,0.00046477,120]
[340265300,1728948652192,-151.0,0.00046477,120]
[340265301,1728948652201,-207.039499,0.00046477,120]
[340265302,1728948652210,-311.714472,0.00046477,120]
[340265303,1728948652219,-207.039499,0.00046477,120]
[340265304,1728948652227,-311.714472,0.00046477,120]
[340265305,1728948652238,-151.0,0.00046477,120]
[340265306,1728948652247,-151.0,0.00046477,120]
[340265307,1728948652256,-266.210097,0.00046477,120]
[340265308,1728948652265,-266.210097,0.00046477,120]
[340265309,1728948652274,-1286.364124,0.00046477,120]
[340265310,1728948652283,-1286.364124,0.00046477,120]
[340265311,1728948652292,-151.0,0.00046477,2]
[340265312,1728948652301,-226.193086,0.00046477,120]
[340265313,1728948652310,-226.193086,0.00046477,120]
[340265314,1728948652319,-151.0,0.00046477,120]
[340265315,1728948652328,-151.0,0.00046477,120]
[340265316,1728948652337,-151.0,0.00046477,120]
[340265317,1728948652346,-151.0,0.00046477,120]
[340265318,1728948652355,-276.05966,0.00046477,120]
[340265319,1728948652365,-151.0,0.00046477,120]
[340265320,1728948652373,-325.24776,0.00046477,120]
[340265321,1728948652384,-325.24776,0.00046477,120]
[340265322,1728948652393,-316.64382,0.00046477,120]
[340265323,1728948652402,-316.64382,0.00046477,120]
[340265324,1728948652412,-512.695828,0.00046477,120]
[340265325,1728948652421,-512.695828,0.00046477,120]
[340265326,1728948652483,-156.1,0.00046501,31]
[340265327,1728948652493,-1477.71342987,0.00046546,28]
[340265328,1728948652502,-907.19,0.00046575,10]
[340265329,1728948652511,-151.0,0.00046575,120]
[340265330,1728948652520,-156.1,0.00046702,60]
[340265331,1728948652529,-500.0,0.00046731,10]
[340265332,1728948652538,-501.23625459,0.00046731,10]
[340265333,1728948652548,-334.02355791,0.00046758,6]
[340265334,1728948652557,-500.0,0.00046767,120]
[340265335,1728948652566,-500.0,0.00046767,120]
[340265336,1728948652576,-500.0,0.00046767,120]
[340265337,1728948652585,-500.0,0.00046767,60]
[340265338,1728948652594,-500.0,0.00046767,120]
[340265339,1728948652603,-500.0,0.00046767,120]
[340265340,1728948652612,-500.0,0.00046767,120]
[340265341,1728948652621,-500.0,0.00046768,120]
[340265342,1728948652630,-500.0,0.00046768,120]
[340265343,1728948652638,-500.0,0.00046768,120]
[340265344,1728948652648,-500.0,0.00046768,120]
[340265345,1728948652656,-500.0,0.00046768,120]
[340265346,1728948652666,-354.58404783,0.00046768,120]
[340265347,1728948652674,-500.0,0.00046768,120]
[340265348,1728948652683,-361.4264585,0.00046768,120]
[340265349,1728948652697,-184.94041674,0.00046768,120]
[340265350,1728948652706,-500.0,0.00046768,120]
[340265351,1728948652715,-500.0,0.00046768,120]
[340265352,1728948652725,-500.0,0.00046768,120]
[340265353,1728948652735,-500.0,0.00046768,120]
[340265354,1728948652744,-500.0,0.00046768,120]
[340265355,1728948652754,-500.0,0.00046768,120]
[340265356,1728948652763,-500.0,0.00046768,120]
[340265357,1728948652773,-500.0,0.00046768,120]
[340265358,1728948652782,-564.94225294,0.00046768,120]
[340265359,1728948652791,-500.0,0.00046768,120]
[340265360,1728948652800,-500.0,0.00046768,120]
[340265361,1728948652809,-1036.76,0.00046768,120]
[340265362,1728948652818,-500.0,0.00046768,120]
[340265363,1728948652827,-500.0,0.00046768,120]
[340265364,1728948652837,-359.77,0.00046768,120]
[340265365,1728948652848,-500.0,0.00046768,120]
[340265366,1728948652858,-524.07304689,0.00046768,120]
[340265367,1728948652870,-500.0,0.00046768,120]
[340265368,1728948652882,-500.0,0.00046768,120]
[340265369,1728948652893,-500.0,0.00046768,120]
[340265370,1728948652902,-500.0,0.00046768,120]
[340265371,1728948652912,-524.02107251,0.00046768,120]
[340265372,1728948652924,-330.47648487,0.00046768,120]
[340265373,1728948652933,-500.0,0.00046768,120]
[340265374,1728948652942,-500.0,0.00046768,120]
[340265375,1728948652953,-500.0,0.00046768,120]
[340265376,1728948652963,-500.0,0.00046768,120]
[340265377,1728948652972,-500.0,0.00046768,120]
[340265378,1728948652982,-500.0,0.00046768,120]
[340265379,1728948652991,-500.0,0.00046768,120]
[340265380,1728948653002,-500.0,0.00046768,120]
[340265381,1728948653013,-500.0,0.00046768,120]
[340265382,1728948653023,-500.0,0.00046768,120]
[340265383,1728948653035,-500.0,0.00046768,120]
[340265384,1728948653045,-500.0,0.00046768,120]
[340265385,1728948653056,-151.0,0.00046768,120]
[340265386,1728948653067,-151.0,0.00046768,120]
[340265387,1728948653077,-286.096435,0.00046768,120]
[340265388,1728948653088,-151.0,0.00046768,120]
[340265389,1728948653099,-151.0,0.00046768,120]
[340265390,1728948653110,-500.0,0.00046768,120]
[340265391,1728948653121,-399.71414296,0.00046768,120]
[340265392,1728948653132,-500.0,0.00046768,120]
[340265393,1728948653141,-500.0,0.00046768,120]
[340265394,1728948653150,-322.94528132,0.00046768,120]
[340265395,1728948653161,-207.039499,0.00046768,120]
[340265396,1728948653170,-207.039499,0.00046768,120]
[340265397,1728948653181,-500.0,0.00046768,120]
[340265398,1728948653191,-683.6,0.00046768,120]
[340265399,1728948653203,-500.0,0.00046768,120]
[340265400,1728948653212,-500.0,0.00046768,120]
[340265401,1728948653223,-500.0,0.00046768,120]
[340265402,1728948653232,-500.0,0.00046768,120]
[340265403,1728948653241,-151.0,0.00046768,120]
[340265404,1728948653250,-500.0,0.00046768,120]
[340265405,1728948653259,-845.02,0.00046768,120]
[340265406,1728948653268,-151.0,0.00046768,120]
[340265407,1728948653277,-500.0,0.00046768,120]
[340265408,1728948653286,-500.0,0.00046768,120]
[340265409,1728948653295,-500.0,0.00046768,120]
[340265410,1728948653304,-1286.364124,0.00046768,120]
[340265411,1728948653313,-1286.364124,0.00046768,120]
[340265412,1728948653322,-151.0,0.00046768,2]
[340265413,1728948653331,-500.0,0.00046768,120]
[340265414,1728948653341,-500.0,0.00046768,120]
[340265415,1728948653350,-500.0,0.00046768,120]
[340265416,1728948653360,-500.0,0.00046768,120]
[340265417,1728948653371,-525.89,0.00046768,120]
[340265418,1728948653380,-500.0,0.00046768,120]
[340265419,1728948653391,-506.7,0.00046768,120]
[340265420,1728948653401,-570.60348183,0.00046768,120]
[340265421,1728948653412,-500.0,0.00046768,120]
[340265422,1728948653421,-500.0,0.00046768,120]
[340265423,1728948653431,-500.0,0.00046768,120]
[340265424,1728948653440,-500.0,0.00046768,120]
[340265425,1728948653450,-500.0,0.00046768,120]
[340265426,1728948653460,-500.0,0.00046768,120]
[340265427,1728948653469,-500.0,0.00046768,120]
[340265428,1728948653478,-500.0,0.00046768,120]
[340265429,1728948653487,-500.0,0.00046768,120]
[340265430,1728948653498,-500.0,0.00046768,120]
[340265431,1728948653509,-500.0,0.00046778,10]
[340265432,1728948653519,-500.0,0.00046778,10]
[340265433,1728948653582,-500.0,0.0004678,10]
[340265434,1728948653592,-501.19295201,0.00046787,10]
[340265435,1728948653603,-500.0,0.00046787,10]
[340265436,1728948653613,-506.61880099,0.00046787,7]
[340265437,1728948653622,-500.29325796,0.00046787,10]
[340265438,1728948653633,-500.0,0.00046787,10]
[340265439,1728948653644,-500.0,0.00046787,10]
[340265440,1728948653654,-508.92163894,0.00046787,10]
[340265441,1728948653664,-500.0,0.00046787,10]
[340265442,1728948653674,-251.04713022,0.00046787,10]
[340265443,1728948653683,-500.0,0.00046787,10]
[340265444,1728948653695,-600.0,0.00046838,2]
[340265445,1728948653707,-502.25563538,0.00046867,10]
[340265446,1728948653716,-156.1,0.00046902,60]
[340265447,1728948653727,-156.1,0.00047102,60]
[340265448,1728948653737,-156.1,0.00047303,60]
[340265449,1728948653746,-600.0,0.00047326,2]
[340265450,1728948653757,-334.02355791,0.00047361,7]
[340265451,1728948653768,-500.0,0.0004737,120]
[340265452,1728948653780,-500.0,0.0004737,120]
[340265453,1728948653791,-500.0,0.0004737,120]
[340265454,1728948653802,-500.0,0.0004737,60]
[340265455,1728948653814,-500.0,0.0004737,120]
[340265456,1728948653825,-500.0,0.0004737,120]
[340265457,1728948653835,-500.0,0.0004737,120]
[340265458,1728948653847,-500.0,0.00047371,120]
[340265459,1728948653858,-500.0,0.00047371,120]
[340265460,1728948653868,-500.0,0.00047371,120]
[340265461,1728948653878,-500.0,0.00047371,120]
[340265462,1728948653890,-500.0,0.00047371,120]
[340265463,1728948653900,-500.0,0.00047371,120]
[340265464,1728948653910,-500.0,0.00047371,120]
[340265465,1728948653920,-500.0,0.00047371,120]
[340265466,1728948653932,-500.0,0.00047371,120]
[340265467,1728948653944,-500.0,0.00047371,120]
[340265468,1728948653955,-500.0,0.00047371,120]
[340265469,1728948653965,-500.0,0.00047371,120]
[340265470,1728948653975,-500.0,0.00047371,120]
[340265471,1728948653984,-500.0,0.00047371,120]
[340265472,1728948653994,-500.0,0.00047371,120]
[340265473,1728948654004,-1036.76,0.00047371,120]
[340265474,1728948654016,-500.0,0.00047371,120]
[340265475,1728948654026,-500.0,0.00047371,120]
[340265476,1728948654037,-359.77,0.00047371,120]
[340265477,1728948654048,-500.0,0.00047371,120]
[340265478,1728948654059,-500.0,0.00047371,120]
[340265479,1728948654069,-500.0,0.00047371,120]
[340265480,1728948654079,-500.0,0.00047371,120]
[340265481,1728948654089,-500.0,0.00047371,120]
[340265482,1728948654097,-500.0,0.00047371,120]
[340265483,1728948654107,-500.0,0.00047371,120]
[340265484,1728948654116,-500.0,0.00047371,120]
[340265485,1728948654125,-500.0,0.00047371,120]
[340265486,1728948654135,-463.37173036,0.00047371,120]
[340265487,1728948654144,-500.0,0.00047371,120]
[340265488,1728948654154,-500.0,0.00047371,120]
[340265489,1728948654163,-500.0,0.00047371,120]
[340265490,1728948654173,-500.0,0.00047371,120]
[340265491,1728948654182,-500.0,0.00047371,120]
[340265492,1728948654193,-500.0,0.00047371,120]
[340265493,1728948654202,-500.0,0.00047371,120]
[340265494,1728948654211,-151.0,0.00047371,120]
[340265495,1728948654220,-271.265248,0.00047371,120]
[340265496,1728948654231,-151.0,0.00047371,120]
[340265497,1728948654243,-151.0,0.00047371,120]
[340265498,1728948654253,-500.0,0.00047371,120]
[340265499,1728948654263,-500.0,0.00047371,120]
[340265500,1728948654273,-500.0,0.00047371,120]
[340265501,1728948654283,-207.039499,0.00047371,120]
[340265502,1728948654295,-207.039499,0.00047371,120]
[340265503,1728948654306,-500.0,0.00047371,120]
[340265504,1728948654317,-683.6,0.00047371,120]
[340265505,1728948654327,-500.0,0.00047371,120]
[340265506,1728948654337,-500.0,0.00047371,120]
[340265507,1728948654347,-543.07591081,0.00047371,120]
[340265508,1728948654357,-542.19208297,0.00047371,120]
[340265509,1728948654367,-500.0,0.00047371,120]
[340265510,1728948654378,-845.02,0.00047371,120]
[340265511,1728948654390,-500.0,0.00047371,120]
[340265512,1728948654400,-500.0,0.00047371,120]
[340265513,1728948654409,-500.0,0.00047371,120]
[340265514,1728948654419,-500.0,0.00047371,120]
[340265515,1728948654428,-500.0,0.00047371,120]
[340265516,1728948654438,-500.0,0.00047371,120]
[340265517,1728948654448,-500.0,0.00047371,120]
[340265518,1728948654458,-525.89,0.00047371,120]
[340265519,1728948654467,-500.0,0.00047371,120]
[340265520,1728948654476,-506.7,0.00047371,120]
[340265521,1728948654486,-500.0,0.00047371,120]
[340265522,1728948654495,-500.0,0.00047371,120]
[340265523,1728948654504,-500.0,0.00047371,120]
[340265524,1728948654514,-500.0,0.00047371,120]
[340265525,1728948654523,-500.0,0.00047371,120]
[340265526,1728948654532,-540.16236278,0.00047371,120]
[340265527,1728948654542,-500.0,0.00047371,120]
[340265528,1728948654551,-500.0,0.00047371,120]
[340265529,1728948654561,-500.0,0.00047371,120]
[340265530,1728948654571,-500.0,0.00047371,120]
[340265531,1728948654633,-512.695828,0.00047371,120]
[340265532,1728948654645,-512.695828,0.00047371,120]
[340265533,1728948654655,-165.061831,0.00047397,120]
[340265534,1728948654665,-668.04711582,0.00047483,7]
[340265535,1728948654677,-151.0,0.00047493,120]
[340265536,1728948654688,-546.094164,0.00047493,120]